[Event "3rd FIDE WCCC Blitz U12 2019"]
[Site "Minsk"]
[Date "2019.08.18"]
[Round "5.5"]
[White "Matviienko, Mykhailo"]
[Black "Pidluznij, Gleb"]
[Result "0-1"]
[ECO "A20"]
[WhiteElo "1755"]
[BlackElo "1925"]
[Annotator "NA"]
[PlyCount "128"]
[EventDate "2019.08.18"]
[EventType "swiss"]
[EventCountry "BLR"]
[SourceTitle "playchess.com"]
[Source "ChessBase"]
[SourceQuality "1"]
[TimeControl "300+2"]

1. c4 {[%emt 0:00:00]} e5 {[%emt 0:00:05]} 2. g3 {[%emt 0:00:00]} Nf6 {[%emt 0:00:02]} 3. Bg2 {[%emt 0:00:00]} d5 {[%emt 0:00:01]} 4. cxd5 {[%emt 0:00:05]} Nxd5 {[%emt 0:00:02]} 5. Nc3 {[%emt 0:00:01]} Nb6 {[%emt 0:00:02]} 6. Nf3 {[%emt 0:00:04]} Nc6 {[%emt 0:00:02]} 7. O-O {[%emt 0:00:01]} Be7 {[%emt 0:00:01]} 8. d3 {[%emt 0:00:07]} O-O {[%emt 0:00:03]} 9. a3 {[%emt 0:00:00]} Be6 {[%emt 0:00:02]} 10. b4 {[%emt 0:00:04]} a5 {[%emt 0:00:09]} 11. b5 {[%emt 0:00:04]} Nd4 {[%emt 0:00:02]} 12. Nxd4 {[%emt 0:00:47]} exd4 {[%emt 0:00:03]} 13. Ne4 {[%emt 0:00:07]} Nd5 {[%emt 0:00:27]} 14. Bb2 {[%emt 0:00:04]} f5 {[%emt 0:00:03]} 15. Nd2 {[%emt 0:00:05]} Bf6 {[%emt 0:00:15]} 16. Nb3 {[%emt 0:00:13]} Nc3 {[%emt 0:01:19]} 17. Bxc3 {[%emt 0:00:29]} dxc3 {[%emt 0:00:03]} 18. Rc1 {[%emt 0:00:11]} Qd6 19. a4 {[%emt 0:00:21]} Qa3 {[%emt 0:00:54]} 20. Rb1 {[%emt 0:00:25]} c6 {[%emt 0:00:50]} 21. d4 {[%emt 0:00:35]} cxb5 {[%emt 0:00:11]} 22. axb5 {[%emt 0:00:02]} a4 {[%emt 0:00:34]} 23. Nc5 {[%emt 0:00:04]} Bc4 {[%emt 0:00:05]} 24. Nd7 {[%emt 0:00:32]} Rfd8 {[%emt 0:00:08]} 25. Nb6 {[%emt 0:00:34]} Bb3 {[%emt 0:00:09]} 26. Qc1 {[%emt 0:00:22]} Qxc1 {[%emt 0:00:06]} 27. Rbxc1 {[%emt 0:00:05]} Ra7 {[%emt 0:00:02]} 28. e3 {[%emt 0:00:06]} c2 {[%emt 0:00:08]} 29. Rfe1 {[%emt 0:00:16]} Be7 {[%emt 0:00:00]} 30. Bf1 {[%emt 0:00:04]} Ba3 {[%emt 0:00:02]} 31. Ra1 {[%emt 0:00:01]} Bb2 {[%emt 0:00:01]} 32. Nc4 {[%emt 0:00:06]} Bxa1 {[%emt 0:00:02]} 33. Rxa1 {[%emt 0:00:01]} Bxc4 {[%emt 0:00:03]} 34. Bxc4+ {[%emt 0:00:01]} Kf8 {[%emt 0:00:00]} 35. Rc1 {[%emt 0:00:03]} Rc8 {[%emt 0:00:02]} 36. Rxc2 {[%emt 0:00:03]} a3 {[%emt 0:00:02]} 37. b6 Ra5 {[%emt 0:00:03]} 38. Bb3 {[%emt 0:00:09]} Rxc2 {[%emt 0:00:02]} 39. Bxc2 {[%emt 0:00:00]} a2 {[%emt 0:00:01]} 40. Bxf5 {[%emt 0:00:02]} Rxf5 {[%emt 0:00:01]} 41. Kg2 {[%emt 0:00:01]} a1=Q {[%emt 0:00:05]} 42. e4 {[%emt 0:00:01]} Rb5 {[%emt 0:00:04]} 43. h4 {[%emt 0:00:03]} Qxd4 {[%emt 0:00:02]} 44. f3 {[%emt 0:00:01]} Rxb6 {[%emt 0:00:01]} 45. h5 {[%emt 0:00:01]} Rh6 {[%emt 0:00:04]} 46. g4 {[%emt 0:00:01]} Rxh5 {[%emt 0:00:01]} 47. gxh5 {[%emt 0:00:01]} g6 {[%emt 0:00:03]} 48. h6 {[%emt 0:00:02]} Qe3 {[%emt 0:00:02]} 49. e5 {[%emt 0:00:02]} Qxe5 {[%emt 0:00:01]} 50. f4 {[%emt 0:00:01]} Qxf4 {[%emt 0:00:01]} 51. Kh3 {[%emt 0:00:00]} Qg5 {[%emt 0:00:01]} 52. Kh2 {[%emt 0:00:01]} b5 {[%emt 0:00:01]} 53. Kh3 {[%emt 0:00:02]} b4 {[%emt 0:00:00]} 54. Kh2 {[%emt 0:00:01]} b3 {[%emt 0:00:01]} 55. Kh3 {[%emt 0:00:00]} b2 {[%emt 0:00:00]} 56. Kh2 {[%emt 0:00:02]} b1=B {[%emt 0:00:03]} 57. Kh3 {[%emt 0:00:02]} Bf5+ {[%emt 0:00:01]} 58. Kh2 {[%emt 0:00:02]} Qxh6+ {[%emt 0:00:02]} 59. Kg3 {[%emt 0:00:02]} Qe3+ {[%emt 0:00:01]} 60. Kh2 {[%emt 0:00:09]} Qg5 {[%emt 0:00:04]} 61. Kh1 {[%emt 0:00:01]} h5 {[%emt 0:00:02]} 62. Kh2 {[%emt 0:00:01]} h4 {[%emt 0:00:00]} 63. Kh1 {[%emt 0:00:03]} Be4+ {[%emt 0:00:01]} 64. Kh2 {[%emt 0:00:01]} Qg3# {[%emt 0:00:01]} 0-1

[Event "3rd FIDE WCCC Blitz U12 2019"]
[Site "Minsk"]
[Date "2019.08.18"]
[Round "5.6"]
[White "Pham, Truong Phu"]
[Black "Balayan, Eduard"]
[Result "0-1"]
[ECO "E61"]
[WhiteElo "1311"]
[BlackElo "1777"]
[Annotator "NA"]
[PlyCount "188"]
[EventDate "2019.08.18"]
[EventType "swiss"]
[EventCountry "BLR"]
[SourceTitle "playchess.com"]
[Source "ChessBase"]
[SourceQuality "1"]
[TimeControl "300+2"]

1. d4 {[%emt 0:00:00]} Nf6 {[%emt 0:00:00]} 2. c4 {[%emt 0:00:01]} g6 {[%emt 0:00:00]} 3. Nc3 {[%emt 0:00:01]} Bg7 {[%emt 0:00:00]} 4. e3 {[%emt 0:00:02]} O-O {[%emt 0:00:02]} 5. Nf3 {[%emt 0:00:01]} d6 {[%emt 0:00:01]} 6. Be2 {[%emt 0:00:01]} Nbd7 {[%emt 0:00:01]} 7. O-O {[%emt 0:00:03]} e5 {[%emt 0:00:01]} 8. b3 {[%emt 0:00:06]} c6 {[%emt 0:00:05]} 9. dxe5 {[%emt 0:00:08]} Nxe5 {[%emt 0:00:08]} 10. Nxe5 {[%emt 0:00:01]} dxe5 {[%emt 0:00:01]} 11. Qc2 {[%emt 0:00:04]} Qc7 {[%emt 0:00:04]} 12. Bb2 {[%emt 0:00:02]} Bf5 {[%emt 0:00:03]} 13. e4 {[%emt 0:00:01]} Be6 {[%emt 0:00:01]} 14. Rad1 {[%emt 0:00:05]} Rad8 {[%emt 0:00:02]} 15. a3 {[%emt 0:00:32]} Nd7 {[%emt 0:00:49]} 16. Rd2 {[%emt 0:00:36]} Bh6 {[%emt 0:00:09]} 17. Rdd1 {[%emt 0:00:00]} Bg7 {[%emt 0:00:09]} 18. Rd2 {[%emt 0:00:01]} Bh6 {[%emt 0:00:08]} 19. Rdd1 {[%emt 0:00:01]} f5 {[%emt 0:00:08]} 20. a4 {[%emt 0:00:24]} Nf6 {[%emt 0:00:47]} 21. Rxd8 {[%emt 0:00:20]} Rxd8 {[%emt 0:00:03]} 22. Rd1 {[%emt 0:00:00]} Kf7 {[%emt 0:00:49]} 23. f3 {[%emt 0:00:40]} Be3+ {[%emt 0:00:14]} 24. Kf1 {[%emt 0:00:04]} Bd4 {[%emt 0:00:06]} 25. Bd3 {[%emt 0:00:06]} fxe4 26. Nxe4 {[%emt 0:00:01]} Bxb2 {[%emt 0:00:25]} 27. Ng5+ {[%emt 0:00:17]} Ke7 {[%emt 0:00:14]} 28. Nxe6 {[%emt 0:00:02]} Kxe6 {[%emt 0:00:12]} 29. Qxb2 {[%emt 0:00:03]} Qb6 {[%emt 0:00:12]} 30. c5 {[%emt 0:00:25]} Qc7 {[%emt 0:00:02]} 31. Bc4+ {[%emt 0:00:04]} Ke7 {[%emt 0:00:03]} 32. Re1 {[%emt 0:00:06]} Nd7 {[%emt 0:00:16]} 33. Qf2 {[%emt 0:00:19]} Rf8 {[%emt 0:00:06]} 34. Qh4+ {[%emt 0:00:03]} Nf6 {[%emt 0:00:24]} 35. Qh3 {[%emt 0:00:02]} Qd7 {[%emt 0:00:14]} 36. Rxe5+ {[%emt 0:00:04]} Kd8 {[%emt 0:00:00]} 37. Qxd7+ {[%emt 0:00:09]} Nxd7 {[%emt 0:00:06]} 38. Rg5 {[%emt 0:00:02]} Ke7 {[%emt 0:00:01]} 39. b4 {[%emt 0:00:05]} Rf4 {[%emt 0:00:01]} 40. Bg8 {[%emt 0:00:03]} Nf6 {[%emt 0:00:05]} 41. Re5+ {[%emt 0:00:01]} Kf8 {[%emt 0:00:01]} 42. Bb3 {[%emt 0:00:16]} Rxb4 {[%emt 0:00:02]} 43. Bc2 {[%emt 0:00:06]} Nd5 {[%emt 0:00:01]} 44. Be4 {[%emt 0:00:20]} Ne3+ {[%emt 0:00:04]} 45. Kf2 {[%emt 0:00:02]} Nc4 {[%emt 0:00:02]} 46. Rg5 {[%emt 0:00:20]} Rxa4 {[%emt 0:00:01]} 47. h4 {[%emt 0:00:02]} Ra2+ {[%emt 0:00:02]} 48. Kg3 {[%emt 0:00:05]} Ne3 {[%emt 0:00:01]} 49. Kh3 {[%emt 0:00:00]} a5 {[%emt 0:00:02]} 50. h5 {[%emt 0:00:02]} gxh5 {[%emt 0:00:01]} 51. Bxh7 {[%emt 0:00:01]} a4 {[%emt 0:00:02]} 52. Rg8+ {[%emt 0:00:01]} Kf7 {[%emt 0:00:01]} 53. Rg5 {[%emt 0:00:07]} Kf6 {[%emt 0:00:01]} 54. Rg8 {[%emt 0:00:13]} a3 {[%emt 0:00:02]} 55. Ra8 {[%emt 0:00:01]} Nxg2 56. Bb1 {[%emt 0:00:01]} Rb2 {[%emt 0:00:07]} 57. Rxa3 {[%emt 0:00:01]} Nf4+ {[%emt 0:00:02]} 58. Kg3 {[%emt 0:00:00]} Ne2+ {[%emt 0:00:01]} 59. Kf2 {[%emt 0:00:02]} Nc1+ {[%emt 0:00:03]} 60. Ke3 {[%emt 0:00:02]} Rxb1 {[%emt 0:00:02]} 61. Ra4 {[%emt 0:00:01]} Rb3+ {[%emt 0:00:02]} 62. Kf4 {[%emt 0:00:02]} Nd3+ {[%emt 0:00:01]} 63. Kg3 {[%emt 0:00:01]} Nxc5 {[%emt 0:00:02]} 64. Rc4 {[%emt 0:00:01]} b6 {[%emt 0:00:02]} 65. Rf4+ {[%emt 0:00:01]} Ke5 {[%emt 0:00:01]} 66. Rf8 {[%emt 0:00:02]} Rd3 {[%emt 0:00:01]} 67. Re8+ {[%emt 0:00:01]} Kd4 {[%emt 0:00:01]} 68. Rd8+ {[%emt 0:00:01]} Kc4 {[%emt 0:00:01]} 69. Rc8 {[%emt 0:00:01]} b5 {[%emt 0:00:01]} 70. Rxc6 b4 71. Rh6 {[%emt 0:00:06]} b3 {[%emt 0:00:01]} 72. Rxh5 {[%emt 0:00:01]} b2 {[%emt 0:00:01]} 73. Rh1 {[%emt 0:00:01]} Na4 {[%emt 0:00:03]} 74. Rb1 {[%emt 0:00:03]} Rc3 {[%emt 0:00:01]} 75. Kg4 {[%emt 0:00:02]} Rc1 {[%emt 0:00:01]} 76. Rxb2 {[%emt 0:00:01]} Nxb2 {[%emt 0:00:01]} 77. f4 {[%emt 0:00:01]} Rf1 {[%emt 0:00:01]} 78. f5 {[%emt 0:00:00]} Kd5 {[%emt 0:00:01]} 79. Kg5 {[%emt 0:00:01]} Kd6 {[%emt 0:00:00]} 80. Kg6 {[%emt 0:00:04]} Ke7 {[%emt 0:00:02]} 81. f6+ {[%emt 0:00:01]} Rxf6+ 82. Kg5 Ke6 {[%emt 0:00:02]} 83. Kg4 {[%emt 0:00:01]} Ke5 {[%emt 0:00:01]} 84. Kg3 {[%emt 0:00:01]} Ke4 {[%emt 0:00:00]} 85. Kg2 {[%emt 0:00:01]} Ke3 {[%emt 0:00:01]} 86. Kg3 {[%emt 0:00:01]} Rg6+ {[%emt 0:00:00]} 87. Kh4 {[%emt 0:00:01]} Kf3 {[%emt 0:00:01]} 88. Kh5 {[%emt 0:00:01]} Rg1 {[%emt 0:00:01]} 89. Kh4 {[%emt 0:00:01]} Nc4 {[%emt 0:00:01]} 90. Kh5 {[%emt 0:00:02]} Kf4 {[%emt 0:00:01]} 91. Kh6 {[%emt 0:00:00]} Kf5 {[%emt 0:00:00]} 92. Kh7 Kf6 93. Kh8 {[%emt 0:00:02]} Kf7 {[%emt 0:00:01]} 94. Kh7 {[%emt 0:00:01]} Rh1# {[%emt 0:00:01]} 0-1

[Event "3rd FIDE WCCC Blitz U12 2019"]
[Site "Minsk"]
[Date "2019.08.18"]
[Round "6.1"]
[White "Khubukshanov, Erdem"]
[Black "Pidluznij, Gleb"]
[Result "0-1"]
[ECO "A04"]
[WhiteElo "2257"]
[BlackElo "1925"]
[Annotator "NA"]
[PlyCount "164"]
[EventDate "2019.08.18"]
[EventType "swiss"]
[EventCountry "BLR"]
[SourceTitle "playchess.com"]
[Source "ChessBase"]
[SourceQuality "1"]
[TimeControl "300+2"]

1. Nf3 {[%emt 0:00:00]} c5 {[%emt 0:00:00]} 2. c4 {[%emt 0:00:00]} Nc6 {[%emt 0:00:06]} 3. g3 {[%emt 0:00:00]} g6 {[%emt 0:00:02]} 4. Bg2 {[%emt 0:00:01]} Bg7 {[%emt 0:00:01]} 5. O-O {[%emt 0:00:01]} Nh6 {[%emt 0:00:04]} 6. e3 {[%emt 0:00:08]} O-O {[%emt 0:00:08]} 7. Nc3 {[%emt 0:00:01]} Nf5 {[%emt 0:00:04]} 8. b3 {[%emt 0:00:02]} d6 {[%emt 0:00:11]} 9. Bb2 {[%emt 0:00:01]} h5 {[%emt 0:00:20]} 10. d3 {[%emt 0:00:09]} Bd7 {[%emt 0:00:09]} 11. Qe2 {[%emt 0:00:09]} Rb8 {[%emt 0:00:23]} 12. Rfd1 {[%emt 0:00:11]} a6 {[%emt 0:00:08]} 13. Nd5 {[%emt 0:00:02]} e5 {[%emt 0:00:30]} 14. Nd2 {[%emt 0:00:27]} Nfe7 {[%emt 0:01:15]} 15. Ne4 {[%emt 0:00:16]} Be6 {[%emt 0:00:04]} 16. Ng5 {[%emt 0:01:42]} Bd7 {[%emt 0:00:46]} 17. Ne4 {[%emt 0:00:09]} Be6 {[%emt 0:00:17]} 18. Nec3 {[%emt 0:00:11]} b5 {[%emt 0:00:19]} 19. Nxe7+ {[%emt 0:00:07]} Nxe7 {[%emt 0:00:02]} 20. cxb5 {[%emt 0:00:10]} axb5 {[%emt 0:00:01]} 21. Rac1 {[%emt 0:00:22]} b4 {[%emt 0:00:05]} 22. Nb1 {[%emt 0:00:04]} Qa5 {[%emt 0:00:14]} 23. d4 {[%emt 0:00:55]} exd4 {[%emt 0:00:08]} 24. exd4 Qxa2 {[%emt 0:00:11]} 25. Rd2 {[%emt 0:00:09]} Qa7 {[%emt 0:00:04]} 26. dxc5 {[%emt 0:00:02]} dxc5 {[%emt 0:00:02]} 27. Bxg7 {[%emt 0:00:01]} Kxg7 {[%emt 0:00:01]} 28. Qe5+ {[%emt 0:00:01]} Kg8 {[%emt 0:00:02]} 29. Rxc5 {[%emt 0:00:01]} Rfd8 {[%emt 0:00:05]} 30. Rxd8+ {[%emt 0:00:01]} Rxd8 {[%emt 0:00:01]} 31. Rc1 {[%emt 0:00:01]} Bxb3 {[%emt 0:00:03]} 32. Bf3 {[%emt 0:00:08]} Be6 {[%emt 0:00:04]} 33. Rc7 {[%emt 0:00:17]} Qb8 {[%emt 0:00:05]} 34. Qa5 {[%emt 0:00:07]} Nf5 {[%emt 0:00:04]} 35. Rb7 {[%emt 0:00:02]} Qd6 {[%emt 0:00:03]} 36. Qxb4 {[%emt 0:00:03]} Qxb4 37. Rxb4 {[%emt 0:00:00]} Nd4 {[%emt 0:00:05]} 38. Nd2 {[%emt 0:00:09]} Nc2 {[%emt 0:00:03]} 39. Rb2 {[%emt 0:00:04]} Rxd2 {[%emt 0:00:01]} 40. Be4 {[%emt 0:00:01]} Rd1+ {[%emt 0:00:01]} 41. Kg2 {[%emt 0:00:00]} Nd4 {[%emt 0:00:04]} 42. Rb8+ {[%emt 0:00:01]} Kg7 43. Rd8 {[%emt 0:00:03]} Rd2 {[%emt 0:00:01]} 44. Rd6 {[%emt 0:00:04]} Nb3 {[%emt 0:00:03]} 45. Rb6 {[%emt 0:00:01]} Nc5 {[%emt 0:00:02]} 46. Bb1 {[%emt 0:00:02]} Nd3 {[%emt 0:00:02]} 47. Rd6 {[%emt 0:00:02]} Ne1+ {[%emt 0:00:01]} 48. Kf1 {[%emt 0:00:02]} Rxd6 {[%emt 0:00:01]} 49. Kxe1 {[%emt 0:00:01]} Bf5 {[%emt 0:00:00]} 50. Ba2 {[%emt 0:00:01]} Ra6 {[%emt 0:00:01]} 51. Bd5 {[%emt 0:00:00]} Rd6 {[%emt 0:00:01]} 52. Bb3 {[%emt 0:00:00]} g5 {[%emt 0:00:01]} 53. Ke2 {[%emt 0:00:01]} h4 {[%emt 0:00:01]} 54. Bc4 {[%emt 0:00:01]} Be6 {[%emt 0:00:01]} 55. Bd3 {[%emt 0:00:01]} Rd4 {[%emt 0:00:03]} 56. Ke3 {[%emt 0:00:02]} Rb4 {[%emt 0:00:01]} 57. f4 {[%emt 0:00:06]} gxf4+ {[%emt 0:00:01]} 58. gxf4 {[%emt 0:00:00]} Kf6 {[%emt 0:00:01]} 59. Be2 {[%emt 0:00:04]} Bf5 {[%emt 0:00:02]} 60. Bf3 {[%emt 0:00:02]} Rb3+ {[%emt 0:00:00]} 61. Kf2 {[%emt 0:00:01]} h3 {[%emt 0:00:01]} 62. Bd5 Rc3 {[%emt 0:00:02]} 63. Kg1 {[%emt 0:00:06]} Be6 {[%emt 0:00:01]} 64. Be4 {[%emt 0:00:01]} Rc4 {[%emt 0:00:01]} 65. Bd3 {[%emt 0:00:00]} Rxf4 {[%emt 0:00:01]} 66. Kh1 {[%emt 0:00:04]} Rf2 {[%emt 0:00:06]} 67. Kg1 {[%emt 0:00:01]} Rg2+ {[%emt 0:00:01]} 68. Kh1 {[%emt 0:00:00]} Bd5 {[%emt 0:00:01]} 69. Be4 {[%emt 0:00:01]} Re2 {[%emt 0:00:02]} 70. Kg1 {[%emt 0:00:07]} Bxe4 {[%emt 0:00:02]} 71. Kf1 {[%emt 0:00:01]} Rxh2 72. Kg1 Rh1+ {[%emt 0:00:03]} 73. Kf2 {[%emt 0:00:01]} h2 {[%emt 0:00:01]} 74. Kg3 {[%emt 0:00:00]} Re1 {[%emt 0:00:03]} 75. Kxh2 Re3 {[%emt 0:00:00]} 76. Kg1 {[%emt 0:00:02]} Re2 {[%emt 0:00:01]} 77. Kf1 {[%emt 0:00:01]} Bf3 {[%emt 0:00:00]} 78. Kg1 {[%emt 0:00:01]} Kg5 {[%emt 0:00:01]} 79. Kf1 {[%emt 0:00:00]} Kg4 {[%emt 0:00:00]} 80. Kg1 {[%emt 0:00:01]} Kg3 {[%emt 0:00:01]} 81. Kf1 {[%emt 0:00:01]} f5 {[%emt 0:00:01]} 82. Kg1 {[%emt 0:00:01]} Re1# {[%emt 0:00:01]} 0-1

[Event "3rd FIDE WCCC Blitz U12 2019"]
[Site "Minsk"]
[Date "2019.08.18"]
[Round "6.2"]
[White "Navumenka, Mikhei"]
[Black "Burbach, Brunel Baron"]
[Result "1-0"]
[ECO "E04"]
[WhiteElo "2148"]
[BlackElo "1548"]
[Annotator "NA"]
[PlyCount "46"]
[EventDate "2019.08.18"]
[EventType "swiss"]
[EventCountry "BLR"]
[SourceTitle "playchess.com"]
[Source "ChessBase"]
[SourceQuality "1"]
[TimeControl "300+2"]

1. d4 {[%emt 0:00:00]} Nf6 {[%emt 0:00:00]} 2. Nf3 {[%emt 0:00:00]} e6 {[%emt 0:00:00]} 3. c4 {[%emt 0:00:03]} d5 {[%emt 0:00:00]} 4. g3 {[%emt 0:00:01]} dxc4 {[%emt 0:00:02]} 5. Bg2 {[%emt 0:00:01]} Bb4+ {[%emt 0:00:01]} 6. Bd2 Bxd2+ {[%emt 0:00:01]} 7. Nbxd2 {[%emt 0:00:03]} b5 {[%emt 0:00:02]} 8. a4 {[%emt 0:00:07]} c6 {[%emt 0:00:08]} 9. O-O {[%emt 0:00:02]} O-O {[%emt 0:00:02]} 10. Ne5 {[%emt 0:00:20]} Nd5 {[%emt 0:00:39]} 11. Ne4 {[%emt 0:00:27]} f6 {[%emt 0:00:29]} 12. Nf3 {[%emt 0:00:02]} a5 {[%emt 0:00:18]} 13. Rc1 {[%emt 0:00:20]} Nd7 {[%emt 0:00:33]} 14. b3 {[%emt 0:00:23]} cxb3 15. Qxb3 {[%emt 0:00:01]} Qb6 {[%emt 0:00:26]} 16. Nc5 {[%emt 0:00:15]} bxa4 {[%emt 0:00:21]} 17. Qxa4 {[%emt 0:00:09]} Nxc5 {[%emt 0:00:03]} 18. Rxc5 {[%emt 0:00:21]} Bd7 {[%emt 0:00:03]} 19. e4 {[%emt 0:00:08]} Nb4 {[%emt 0:00:04]} 20. Nd2 {[%emt 0:00:09]} e5 {[%emt 0:00:36]} 21. Nc4 {[%emt 0:00:14]} Qa7 {[%emt 0:00:01]} 22. Rxa5 {[%emt 0:00:06]} c5 {[%emt 0:00:55]} 23. Qb3 {[%emt 0:00:12]} Qb7 {[%emt 0:00:12]} 1-0

[Event "3rd FIDE WCCC Blitz U12 2019"]
[Site "Minsk"]
[Date "2019.08.18"]
[Round "6.3"]
[White "Balayan, Eduard"]
[Black "Chyndygyr, Tamerlan"]
[Result "0-1"]
[ECO "B00"]
[WhiteElo "1777"]
[BlackElo "1984"]
[Annotator "NA"]
[PlyCount "70"]
[EventDate "2019.08.18"]
[EventType "swiss"]
[EventCountry "BLR"]
[SourceTitle "playchess.com"]
[Source "ChessBase"]
[SourceQuality "1"]
[TimeControl "300+2"]

1. e4 {[%emt 0:00:00]} d6 {[%emt 0:00:00]} 2. d4 {[%emt 0:00:00]} Nf6 {[%emt 0:00:00]} 3. Nd2 {[%emt 0:00:03]} Nbd7 {[%emt 0:00:00]} 4. Ngf3 {[%emt 0:00:04]} e5 {[%emt 0:00:00]} 5. dxe5 dxe5 {[%emt 0:00:01]} 6. Bc4 {[%emt 0:00:04]} Be7 {[%emt 0:00:02]} 7. Bxf7+ {[%emt 0:00:29]} Kxf7 {[%emt 0:00:01]} 8. Ng5+ {[%emt 0:00:01]} Kg8 {[%emt 0:00:01]} 9. Ne6 {[%emt 0:00:03]} Qe8 {[%emt 0:00:00]} 10. Nxc7 {[%emt 0:00:02]} Qd8 {[%emt 0:00:15]} 11. Nxa8 {[%emt 0:00:02]} b5 {[%emt 0:00:08]} 12. O-O {[%emt 0:01:00]} Bb7 {[%emt 0:00:02]} 13. c3 {[%emt 0:00:08]} Qxa8 {[%emt 0:00:09]} 14. Qb3+ {[%emt 0:00:01]} Kf8 {[%emt 0:00:01]} 15. Qxb5 Bc6 {[%emt 0:00:10]} 16. Qb3 {[%emt 0:00:11]} Bc5 {[%emt 0:00:18]} 17. Nf3 {[%emt 0:00:18]} Bxe4 {[%emt 0:00:14]} 18. Ng5 {[%emt 0:00:15]} Bd5 {[%emt 0:00:00]} 19. c4 {[%emt 0:00:19]} Bxg2 {[%emt 0:00:06]} 20. Rd1 {[%emt 0:00:02]} Ke7 {[%emt 0:00:11]} 21. Be3 {[%emt 0:00:15]} Bxe3 {[%emt 0:00:15]} 22. Qxe3 {[%emt 0:00:09]} h6 {[%emt 0:00:05]} 23. Qa3+ {[%emt 0:00:09]} Ke8 {[%emt 0:00:25]} 24. Ne6 {[%emt 0:00:13]} Qb7 {[%emt 0:00:19]} 25. Nc5 {[%emt 0:00:33]} Nxc5 {[%emt 0:00:13]} 26. Qxc5 {[%emt 0:00:01]} Kf7 {[%emt 0:00:04]} 27. Qe3 {[%emt 0:00:47]} Bf3 {[%emt 0:00:20]} 28. Rd3 {[%emt 0:00:09]} e4 {[%emt 0:00:07]} 29. Rb3 {[%emt 0:00:03]} Qd7 {[%emt 0:00:06]} 30. Qf4 {[%emt 0:00:12]} Rd8 {[%emt 0:00:07]} 31. h3 {[%emt 0:00:09]} g5 {[%emt 0:00:04]} 32. Qe5 {[%emt 0:00:09]} Qd1+ {[%emt 0:00:09]} 33. Rxd1 {[%emt 0:00:03]} Rxd1+ {[%emt 0:00:01]} 34. Kh2 {[%emt 0:00:01]} Rh1+ {[%emt 0:00:01]} 35. Kg3 {[%emt 0:00:01]} Nh5# {[%emt 0:00:00]} 0-1

[Event "3rd FIDE WCCC Blitz U12 2019"]
[Site "Minsk"]
[Date "2019.08.18"]
[Round "6.4"]
[White "Berin, Artem"]
[Black "Strybuk, Artsiom I"]
[Result "0-1"]
[ECO "C65"]
[WhiteElo "1734"]
[BlackElo "2200"]
[Annotator "NA"]
[PlyCount "58"]
[EventDate "2019.08.18"]
[EventType "swiss"]
[EventCountry "BLR"]
[SourceTitle "playchess.com"]
[Source "ChessBase"]
[SourceQuality "1"]
[TimeControl "300+2"]

1. e4 {[%emt 0:00:00]} e5 {[%emt 0:00:00]} 2. Nf3 {[%emt 0:00:00]} Nc6 {[%emt 0:00:00]} 3. Bb5 {[%emt 0:00:01]} Nf6 {[%emt 0:00:00]} 4. Qe2 {[%emt 0:00:01]} Bc5 {[%emt 0:00:05]} 5. O-O {[%emt 0:00:03]} d6 {[%emt 0:00:08]} 6. c3 {[%emt 0:00:01]} O-O {[%emt 0:00:05]} 7. d3 {[%emt 0:00:06]} h6 {[%emt 0:00:04]} 8. h3 {[%emt 0:00:03]} Bb6 {[%emt 0:00:01]} 9. Nbd2 {[%emt 0:00:09]} Ne7 {[%emt 0:00:02]} 10. Ba4 {[%emt 0:00:03]} c6 {[%emt 0:00:02]} 11. Rd1 {[%emt 0:00:05]} Ng6 {[%emt 0:00:03]} 12. Nf1 {[%emt 0:00:03]} Re8 {[%emt 0:00:19]} 13. Ng3 {[%emt 0:00:13]} d5 {[%emt 0:00:01]} 14. Bc2 {[%emt 0:00:02]} Be6 {[%emt 0:00:14]} 15. Be3 {[%emt 0:00:37]} Qd7 {[%emt 0:00:03]} 16. a4 {[%emt 0:00:11]} Rad8 {[%emt 0:00:20]} 17. a5 {[%emt 0:00:15]} Bxe3 {[%emt 0:00:02]} 18. fxe3 {[%emt 0:00:16]} Qc7 {[%emt 0:00:45]} 19. Nf5 {[%emt 0:00:19]} Bxf5 {[%emt 0:01:03]} 20. exf5 {[%emt 0:00:02]} e4 {[%emt 0:00:14]} 21. fxg6 {[%emt 0:00:17]} exf3 {[%emt 0:00:01]} 22. gxf7+ Qxf7 {[%emt 0:00:02]} 23. Qxf3 {[%emt 0:00:04]} Kh8 {[%emt 0:00:12]} 24. Re1 {[%emt 0:00:35]} Re7 {[%emt 0:00:07]} 25. Re2 {[%emt 0:00:04]} Rde8 {[%emt 0:00:18]} 26. Rae1 {[%emt 0:00:01]} Qe6 {[%emt 0:00:06]} 27. e4 {[%emt 0:00:22]} dxe4 {[%emt 0:00:01]} 28. dxe4 {[%emt 0:00:01]} Qe5 {[%emt 0:00:01]} 29. Qf5 {[%emt 0:00:10]} Qxf5 {[%emt 0:00:04]} 0-1

[Event "3rd FIDE WCCC Blitz U12 2019"]
[Site "Minsk"]
[Date "2019.08.18"]
[Round "6.5"]
[White "Zubar, Volodymyr"]
[Black "Kolesov, Gordey"]
[Result "0-1"]
[ECO "C77"]
[WhiteElo "1748"]
[BlackElo "1761"]
[Annotator "NA"]
[PlyCount "94"]
[EventDate "2019.08.18"]
[EventType "swiss"]
[EventCountry "BLR"]
[SourceTitle "playchess.com"]
[Source "ChessBase"]
[SourceQuality "1"]
[TimeControl "300+2"]

1. e4 {[%emt 0:00:00]} e5 {[%emt 0:00:00]} 2. Nf3 {[%emt 0:00:01]} Nc6 {[%emt 0:00:00]} 3. Bb5 {[%emt 0:00:01]} a6 {[%emt 0:00:00]} 4. Ba4 {[%emt 0:00:02]} Nf6 {[%emt 0:00:04]} 5. Bxc6 {[%emt 0:00:01]} dxc6 {[%emt 0:00:01]} 6. d3 {[%emt 0:00:01]} Nd7 {[%emt 0:00:06]} 7. Nbd2 {[%emt 0:00:16]} Bd6 {[%emt 0:00:01]} 8. O-O {[%emt 0:00:13]} O-O {[%emt 0:00:01]} 9. Nc4 {[%emt 0:00:14]} Re8 {[%emt 0:00:17]} 10. b3 {[%emt 0:00:04]} Bf8 {[%emt 0:00:08]} 11. Bb2 {[%emt 0:00:06]} f6 {[%emt 0:00:01]} 12. g3 {[%emt 0:00:33]} Nc5 {[%emt 0:00:06]} 13. Nh4 {[%emt 0:00:13]} Bh3 {[%emt 0:00:09]} 14. Re1 {[%emt 0:00:06]} Qd7 {[%emt 0:00:13]} 15. Ne3 {[%emt 0:00:43]} Be6 {[%emt 0:00:24]} 16. Qe2 {[%emt 0:00:58]} Bf7 {[%emt 0:00:04]} 17. Nef5 {[%emt 0:00:16]} Kh8 {[%emt 0:00:18]} 18. Rad1 {[%emt 0:00:10]} Ne6 {[%emt 0:00:04]} 19. Bc1 {[%emt 0:00:45]} c5 {[%emt 0:00:14]} 20. Bb2 {[%emt 0:00:14]} Nd4 {[%emt 0:00:02]} 21. Bxd4 cxd4 {[%emt 0:00:02]} 22. Qd2 {[%emt 0:00:18]} a5 {[%emt 0:00:05]} 23. a4 {[%emt 0:00:01]} Bb4 {[%emt 0:00:04]} 24. Qe2 {[%emt 0:00:08]} Bxe1 {[%emt 0:00:03]} 25. Rxe1 Be6 {[%emt 0:00:04]} 26. Qg4 {[%emt 0:00:10]} Bxf5 {[%emt 0:00:13]} 27. exf5 {[%emt 0:00:05]} Kg8 {[%emt 0:00:23]} 28. Re4 {[%emt 0:00:03]} Qf7 {[%emt 0:00:11]} 29. Kg2 {[%emt 0:00:04]} c6 {[%emt 0:00:02]} 30. Qh3 {[%emt 0:00:05]} Kf8 {[%emt 0:00:20]} 31. Nf3 {[%emt 0:00:03]} Qg8 {[%emt 0:00:11]} 32. Rh4 {[%emt 0:00:04]} h6 {[%emt 0:00:07]} 33. Re4 {[%emt 0:00:01]} b5 {[%emt 0:00:22]} 34. Qh5 {[%emt 0:00:03]} Qf7 {[%emt 0:00:01]} 35. Qg4 {[%emt 0:00:02]} bxa4 {[%emt 0:00:05]} 36. bxa4 {[%emt 0:00:00]} Rab8 {[%emt 0:00:05]} 37. Nh4 {[%emt 0:00:04]} Kg8 {[%emt 0:01:02]} 38. Ng6 {[%emt 0:00:02]} Rb2 {[%emt 0:00:08]} 39. Re2 {[%emt 0:00:01]} Ra2 {[%emt 0:00:01]} 40. Qf3 {[%emt 0:00:03]} Qd5 {[%emt 0:00:05]} 41. Re4 Rxc2 {[%emt 0:00:11]} 42. Qh5 {[%emt 0:00:04]} Rd2 {[%emt 0:00:00]} 43. Qf3 {[%emt 0:00:02]} c5 {[%emt 0:00:00]} 44. Nh4 {[%emt 0:00:03]} c4 {[%emt 0:00:00]} 45. dxc4 Qxc4 {[%emt 0:00:00]} 46. Rg4 {[%emt 0:00:02]} Rd8 {[%emt 0:00:15]} 47. Rg6 {[%emt 0:00:03]} Qd5 {[%emt 0:00:02]} 0-1